Cogmind - Beta 16.1 @@@ ROGUE MODE // 2026.02.17 @ 20:50:10 Player: Artackni Result: Destroyed by P-80 Master with Gamma Rifle Performance ------------- Evolutions (7) 3500 Regions Visited (20) 4000 Robots Destroyed (259) 1295 Value Destroyed (11555) 11555 Prototype IDs (24) 480 Alien Tech Used (0) 0 Bonus (8113) 8113 TOTAL SCORE: 28943 Bonus ------- Triggered High Security 500 High Alert Combat Kills 1944 Follower Combat Kills 1562 Network Hubs Disabled 200 Met Warlord at Base 500 MAIN.C Attacked Warlord 500 Warlord Defense Kills 1892 Built Enhanced Grunts 300 A7 Reached Mainframe 300 Met R17 at Cetus 500 Friendly Fire -85 Cogmind --------- Core Integrity 0/1300 Matter 32/300 Energy 98/100 System Corruption 8% Temperature Cool (0) Movement Core (50) Location -3/Testing Parts ------- > --- POWER (2) -------- (None) > --- PROPULSION (6) --- (None) > --- UTILITY (9) ------ Improved System Shield > --- WEAPON (4) ------- (None) > --- INVENTORY (5) ---- Improved Particle Charger Improved Kinecellerator Centrium Medium Armor Plating Hardcell Cannon Fusion Bomb Launcher Peak State ------------ > --- POWER ------------ Multi-Quantum Reactor > --- PROPULSION ------- Advanced Myomer Leg Myomer-FC Exoskeleton > --- UTILITY ---------- Armored Scrap Engine Experimental Cooling System Large Storage Unit Enhanced Optical Array Improved Kinecellerator Thermal Barrier Advanced Remote Force Field > --- WEAPON ----------- Thermal Plasma Construct/G > --- INVENTORY -------- Myomer Leg Improved Gyrokinetic Inverter Cooled Impulse Thruster Advanced Cryofiber Web IFF Parser Seismic Detector Improved Particle Charger Improved Transmission Jammer Centrium Medium Armor Plating Centrium Medium Armor Plating Advanced Shield Generator Improved Component Analysis Suite Vortex Rail Helical Railgun Vortex Lance [Rating: 150] Favorites ----------- Power Constructs Engine Ion Engine Power Core Light Nuclear Core Reactor Constructs Propulsion Constructs Treads Light Treads Leg Constructs Wheel Compact Wheel Hover Unit Aerolev Unit Flight Unit Nuclear Pulse Array Utility Large Storage Unit Device Armored Scrap Engine Storage Large Storage Unit Processor Enhanced Optical Array Hackware Improved System Shield Protection Centrium Medium Armor Plating Weapon Constructs Energy Gun Constructs Energy Cannon Beam Cannon Ballistic Gun Enhanced Autogun Ballistic Cannon Battle Cannon Launcher Smartbomb Launcher Special Weapon RU-N14's Throwing Claymores v3 Slashing Weapon Katana Piercing Weapon Vortex Lance Build | -11 -10 -10 -8 -8 -8 -6 -6 -6 -6 -6 -5 -5 -5 -5 -4 -4 -4 -4 -3 -3 ------- Run | Yrd Mat Sub Mat Sto Rec Fac Ext Cet Arc Hub Fac Upp Upp War Pro Fac Arm Lab Res Tes Slots Evolved 14 | . . . 4 . . 4 . . . . 2 . . . . 2 . . 2 . Power 1 | . . . . . . 1 . . . . . . . . . . . . . . Propulsion 4 | . . . 2 . . 1 . . . . 1 . . . . . . . . . Utility 7 | . . . 1 . . 2 . . . . 1 . . . . 2 . . 1 . Weapon 2 | . . . 1 . . . . . . . . . . . . . . . 1 . Parts Attached 125 | 7 5 5 9 21 2 9 2 5 . 5 9 2 1 9 1 10 12 . 11 . Power 11 | 1 1 . 1 3 . 2 1 1 . . . . . . . . 1 . . . Engine 5 | 1 1 . 1 . . 2 . . . . . . . . . . . . . . Core 4 | . . . . 3 . . 1 . . . . . . . . . . . . . Reactor 2 | . . . . . . . . 1 . . . . . . . . 1 . . . Propulsion 32 | 2 . 2 2 9 . 1 . . . . . . . 2 . 3 8 . 3 . Treads 12 | . . 2 2 7 . . . . . . . . . . . . . . 1 . Leg 5 | . . . . . . 1 . . . . . . . 1 . 3 . . . . Wheel 2 | 2 . . . . . . . . . . . . . . . . . . . . Hover 1 | . . . . 1 . . . . . . . . . . . . . . . . Flight 12 | . . . . 1 . . . . . . . . . 1 . . 8 . 2 . Utility 48 | 2 1 . 2 2 1 6 . 3 . 4 7 1 1 3 1 7 2 . 5 . Device 32 | 1 . . 2 1 1 4 . . . 4 6 1 1 3 1 3 1 . 3 . Storage 2 | 1 1 . . . . . . . . . . . . . . . . . . . Processor 8 | . . . . 1 . 2 . . . . 1 . . . . 3 . . 1 . Hackware 2 | . . . . . . . . . . . . . . . . . 1 . 1 . Protection 4 | . . . . . . . . 3 . . . . . . . 1 . . . . Artifact . | . . . . . . . . . . . . . . . . . . . . . Weapon 34 | 2 3 3 4 7 1 . 1 1 . 1 2 1 . 4 . . 1 . 3 . Energy Gun 4 | 1 . . 1 . . . . 1 . . 1 . . . . . . . . . Energy Cannon 6 | . 2 2 . 1 . . . . . . 1 . . . . . . . . . Ballistic Gun 11 | 1 . . 1 6 1 . . . . . . 1 . . . . . . 1 . Ballistic Cannon 4 | . . 1 1 . . . . . . 1 . . . . . . . . 1 . Launcher 3 | . 1 . . . . . . . . . . . . . . . 1 . 1 . Special Weapon 4 | . . . . . . . 1 . . . . . . 3 . . . . . . Impact Weapon . | . . . . . . . . . . . . . . . . . . . . . Slashing Weapon 1 | . . . 1 . . . . . . . . . . . . . . . . . Piercing Weapon 1 | . . . . . . . . . . . . . . 1 . . . . . . Special Melee Weapon . | . . . . . . . . . . . . . . . . . . . . . Unidentified Prototypes 19 | . . . . 5 1 . . 1 . 1 1 . . 6 . 1 1 . 2 . Parts Lost 43 | . 2 . . . . 4 1 . . 2 2 . . . . 3 18 . 11 . Power 6 | . . . . . . 2 1 . . . . . . . . . 3 . . . Propulsion 12 | . . . . . . . . . . . . . . . . . 6 . 6 . Utility 16 | . . . . . . 2 . . . 2 1 . . . . 1 5 . 5 . Weapon 9 | . 2 . . . . . . . . . 1 . . . . 2 4 . . . Highest Loss Streak 8 | . 2 . . . . 3 1 . . 2 1 . . . . 2 8 . 5 . To Critical Strikes 2 | . . . . . . . . . . . . . . . . . 2 . . . Average Backups 12 | 2 12 14 13 14 11 12 13 14 14 14 11 14 15 14 14 14 11 4 4 5 Power . | . 1 1 1 1 . . . . 2 1 . . . . . . . . . . Propulsion 3 | 1 5 6 5 7 4 4 4 4 2 3 2 1 1 . 1 3 3 1 . . Utility 5 | . 2 3 3 1 1 2 4 6 7 7 9 11 12 10 10 9 7 3 3 3 Weapon 2 | . 4 4 4 4 3 2 2 2 1 2 . 2 2 3 3 1 . . 1 2 Tool/Special . | . . . . . . . . . . . . . . . . . . . . . Unused Backups 71 | . 1 3 5 4 7 10 7 4 2 6 6 . . 4 . 3 8 . . 1 Power 7 | . . . . 1 1 1 . . . 3 1 . . . . . . . . . Propulsion 28 | . . . 4 1 5 5 . 2 1 2 4 . . 1 . . 3 . . . Utility 13 | . . . . 1 1 1 . 1 . . 1 . . 1 . 1 5 . . 1 Weapon 22 | . 1 3 1 1 . 3 6 1 1 1 . . . 2 . 2 . . . . Tool/Special 1 | . . . . . . . 1 . . . . . . . . . . . . . Average Slot Usage (%) 59 | . 99 99 99 100 70 42 51 49 46 45 45 46 47 49 47 53 33 21 25 4 Engine 1 | . 14 14 9 . . 3 1 . . . . . . . . . . . . . Core 2 | . . . . 8 8 4 9 1 . . . . . . . . . . . . Reactor 2 | . . . . . . . . 6 6 6 5 5 5 5 5 5 5 . . . Treads 7 | . . 17 35 36 14 . . 6 6 6 1 . . . . . . . 1 . Leg 2 | . . . . . . 1 . . . . 3 5 5 5 5 7 4 . . . Wheel 1 | . 28 10 . . 1 . . . . . . . . . . . . . . . Device 14 | . 14 14 17 12 8 10 13 6 6 12 19 22 23 22 23 23 7 . 4 . Storage 6 | . 14 14 9 9 9 6 6 6 6 6 5 5 5 5 5 5 4 . . . Processor 2 | . . . . 5 2 3 6 6 6 . . . . . . 5 4 . 2 . Energy Cannon 2 | . 10 26 3 3 . 3 4 . 3 3 3 . . . . 1 . . . . Ballistic Gun 4 | . 9 . 5 17 17 . . . . . . . . . . . . . 1 . Ballistic Cannon 3 | . . . 11 4 1 2 1 6 2 2 1 5 5 5 5 3 . . . . Peak Build Rating 150 | 7 8 12 26 33 52 75 86 109 110 115 118 109 105 131 129 150 109 36 77 8 Average Rating 75 | 5 7 10 21 29 41 63 77 100 108 108 104 105 105 116 126 137 80 36 40 8 On Entrance 64 | . 7 8 12 26 32 45 72 85 109 108 98 104 105 105 128 126 108 36 36 8 Avg Prop Armor Cover (%) 21 | . . . . . 15 . . . . . . . . . . . 22 27 22 . Naked Turns 17 | . . . . . . . . . . . . . . . . . 17 . . . Heaviest Build 104 | 14 32 37 42 40 37 47 47 69 62 63 68 60 56 95 86 104 70 . 11 . Greatest Support 234 | 32 32 40 80 80 80 102 149 158 158 158 189 189 189 209 209 234 129 7 26 3 Greatest Overweight (x) 1 | . . 1 . . 1 . . . . . . . . . . . . . . . Average Overweight (x) . | . . . . . . . . . . . . . . . . . . . . . Largest Inventory Capacity 15 | 8 15 15 15 15 15 15 15 15 15 15 15 15 15 15 15 15 15 5 5 5 Average Capacity 14 | 7 13 15 15 15 15 15 15 15 15 15 15 15 15 15 15 15 13 5 5 5 Most Carried 15 | 5 15 15 15 15 15 15 15 15 15 15 15 15 15 15 15 15 15 5 5 5 Average Carried 13 | 2 12 14 13 14 11 12 13 14 14 14 11 14 15 14 14 14 12 5 4 5 Final Capacity 15 | 8 15 15 15 15 15 15 15 15 15 15 15 15 15 15 15 15 5 5 5 5 Final Carried 15 | 5 14 15 15 15 9 14 15 15 15 15 15 15 15 14 15 15 5 5 5 5 Scrap Engine Consumption 168 | . . . . . 55 30 13 14 2 11 13 1 . 14 . 11 4 . . . Constructs Created 8 | . . . . . 5 2 . . . . . . . . . . 1 . . . Constructs Modified 64 | . . . . . 16 10 7 7 1 4 7 . . 7 . 5 . . . . Class Distribution -------------------- 60% | Construct 17% | Mutant 7% | Scavenger-Gunner 6% | Gunner 5% | Commander-Construct Dominant Class ---------------- Mutant | -10/Materials Mutant | -10/Subcaves Gunner | -8/Materials Scavenger-Gunner | -8/Storage Construct | -8/Recycling Construct | -6/Factory Construct | -6/Extension Commander-Construct | -6/Cetus Commander-Construct | -6/Archives Construct | -6/Hub_04(d) Construct | -5/Factory Construct | -5/Upper Caves Construct | -5/Upper Caves Construct | -5/Warlord Construct | -4/Proximity Caves Construct | -4/Factory Mutant | -4/Armory Mutant | -4/Lab Hacker-Mutant | -3/Research Mutant | -3/Testing Resources | -11 -10 -10 -8 -8 -8 -6 -6 -6 -6 -6 -5 -5 -5 -5 -4 -4 -4 -4 -3 -3 ----------- Run | Yrd Mat Sub Mat Sto Rec Fac Ext Cet Arc Hub Fac Upp Upp War Pro Fac Arm Lab Res Tes Matter Collected 4661 | 234 180 79 265 947 492 604 197 138 48 308 235 79 22 135 50 327 284 . 37 . Remotely . | . . . . . . . . . . . . . . . . . . . . . Salvage Created 13148 | 41 440 231 469 1012 1225 1061 452 123 83 1038 1089 64 230 499 137 4465 439 . 50 . Parts 637 | 7 35 8 22 61 63 54 20 8 5 60 60 4 4 22 7 174 16 . 7 . Haulers Intercepted 9 | . 2 . 1 2 . . . . . 2 . . . . . 2 . . . . Recyclers Shooed 6 | 1 . . . . . 1 2 . . . . . . . . 2 . . . . Parts Field Recycled . | . . . . . . . . . . . . . . . . . . . . . Retrieved Matter . | . . . . . . . . . . . . . . . . . . . . . Parts Self-Destructed 20 | . . 3 . . . . . . . . . 6 4 . 7 . . . . . Prevented 1 | . . . . . . . . . . . . 1 . . . . . . . . Parts Restored . | . . . . . . . . . . . . . . . . . . . . . Kills | -11 -10 -10 -8 -8 -8 -6 -6 -6 -6 -6 -5 -5 -5 -5 -4 -4 -4 -4 -3 -3 ------- Run | Yrd Mat Sub Mat Sto Rec Fac Ext Cet Arc Hub Fac Upp Upp War Pro Fac Arm Lab Res Tes Combat Hostiles Destroyed 201 | . 12 4 11 19 17 19 6 2 1 12 16 1 4 16 2 46 10 . 3 . Melee 7 | . . . . . . . . . . 1 . . . . . . 6 . . . Guns 26 | . 5 . 3 9 9 . . . . . . . . . . . . . . . Cannons 144 | . 5 3 8 9 8 19 6 2 1 11 16 1 3 6 2 42 2 . . . AOE 22 | . 2 . . 1 . . . . . . . . 1 9 . 4 2 . 3 . Classes Destroyed 23 | 1 5 2 2 2 4 1 1 . . 1 . . . 2 . 1 1 . . . Worker 15 | . . . . 1 . . . . . 4 . . . . . 10 . . . . Builder 12 | . 1 . . 3 . 1 . . . 1 1 . . . . 4 . . 1 . Tunneler 4 | 2 1 . . . . . . . . . 1 . . . . . . . . . Hauler 9 | . 2 . 1 2 . . . . . 2 . . . . . 2 . . . . Recycler 13 | . . . . . 1 . . . . . 2 . . . . 10 . . . . Mechanic 1 | . . . . . . . . . . . . . . . . . 1 . . . Operator 1 | . . . . . . . . . . . . . . . . 1 . . . . Watcher 3 | . 1 . . . . . 1 . . 1 . . . . . . . . . . Swarmer 34 | . 6 . 3 . . 3 . . . . 5 . . 1 . 8 5 . 3 . Saboteur 1 | . . . . . . . . . . 1 . . . . . . . . . . Grunt 72 | . 6 . 4 10 2 6 2 . . 7 4 . 3 8 2 14 4 . . . Brawler 4 | . . . . . 3 1 . . . . . . . . . . . . . . Duelist 7 | . . . 1 . 1 1 . . . . . . 1 1 . 2 . . . . Protector 4 | . . . . . 2 . . . . . . . . 2 . . . . . . Sentry 25 | . . . 3 8 4 1 1 . 1 1 3 . . . . 3 . . . . Demolisher 1 | . . . . . 1 . . . . . . . . . . . . . . . Specialist 1 | . . . . . . . . . . . . . . 1 . . . . . . Hunter 20 | . . . . 1 . 5 . . . 1 . 1 . . . 12 . . . . Programmer 15 | . . . . . . 2 . . . 1 4 . . . . 7 1 . . . Behemoth 3 | . . . . . . . 1 . . . . . . 2 . . . . . . Cetus Guard 2 | . . . . . . . . 2 . . . . . . . . . . . . Enhanced Grunt 1 | . . . . . . . . . . 1 . . . . . . . . . . Executioner 1 | . . . . . . . . . . . . . . 1 . . . . . . Artisan 1 | . . 1 . . . . . . . . . . . . . . . . . . Subdweller 8 | . . 4 . . 4 . . . . . . . . . . . . . . . Guerrilla 2 | . . . . . . . 2 . . . . . . . . . . . . . Best Kill Streak 17 | 2 9 1 4 3 5 4 2 1 1 4 6 1 4 7 2 17 5 . 4 . Combat Bots Only 7 | . 7 1 3 3 5 4 2 1 1 4 6 1 4 7 2 7 4 . 3 . Max Kills in Single Turn 4 | 1 1 1 1 2 1 1 1 1 1 2 2 1 1 2 1 4 2 . 4 . Gunslinging . | . . . . . . . . . . . . . . . . . . . . . Exploded 3 | . 1 . . 1 . . . . . . . . 1 2 . 1 2 . 3 . Melee 1 | . . . . . . . . . . 1 . . . . . . 1 . . . Uniques/NPCs Destroyed . | . . . . . . . . . . . . . . . . . . . . . Combat | -11 -10 -10 -8 -8 -8 -6 -6 -6 -6 -6 -5 -5 -5 -5 -4 -4 -4 -4 -3 -3 -------- Run | Yrd Mat Sub Mat Sto Rec Fac Ext Cet Arc Hub Fac Upp Upp War Pro Fac Arm Lab Res Tes Hostile Shots Fired 1857 | . 45 18 40 59 22 202 86 34 9 114 116 12 15 55 14 492 299 . 215 10 Missed 619 | . 7 7 8 15 6 72 39 8 2 22 33 5 2 19 4 168 107 . 89 6 Hits 1238 | . 38 11 32 44 16 130 47 26 7 92 83 7 13 36 10 324 192 . 126 4 Melee 10 | . . . . . . 3 . . . 1 . . . 1 . 4 1 . . . Projectile 1228 | . 38 11 32 44 16 127 47 26 7 91 83 7 13 35 10 320 191 . 126 4 AOE 19 | . . . . . . . . . . . . . . . . 1 18 . . . Critical Strikes 67 | . . 1 1 1 1 6 1 4 . 7 8 . 1 3 1 17 7 . 7 1 Part Disruptions 2 | . . . . . . . . . . 1 . . . . . . 1 . . . Damage Taken 19782 | . 429 226 420 724 276 2070 523 557 210 2525 1293 85 272 509 61 3075 3808 . 2629 90 Core 3616 | . 121 37 69 31 121 186 60 . . 406 92 . . 129 13 182 852 . 1227 90 Absorbed by Shields 2696 | . . . . . . . 143 178 . . 257 32 . 32 54 1958 42 . . . Ignored by Resistances 1674 | . . . . . . . . 12 . . . . . 81 92 1347 142 . . . Regen/Repaired (Parts) 6243 | . . . . . 60 1082 558 390 . 571 1305 . . 769 . 1408 100 . . . Core Remaining (%) 50 | 100 . 36 . . 59 . . . . 23 . . . . 76 . . 10 . . Volleys Fired 690 | 7 43 26 28 50 43 125 42 24 10 58 52 10 9 22 8 114 10 . 9 . Largest 3 | 2 2 2 3 3 3 1 1 1 1 1 3 1 1 2 1 1 1 . 1 . Hottest 248 | 70 120 120 173 130 130 69 51 44 44 155 248 154 154 130 130 130 46 . 55 . Shots Fired 935 | 14 79 32 76 150 79 124 42 24 10 56 67 10 9 24 8 112 10 . 9 . Gun 251 | 14 54 . 37 85 54 . . . . . 4 . . . . . . . 3 . Cannon 663 | . 21 32 39 65 25 124 42 24 10 56 63 10 9 17 8 112 3 . 3 . Launcher 14 | . 4 . . . . . . . . . . . . . . . 7 . 3 . Special 7 | . . . . . . . . . . . . . . 7 . . . . . . Kinetic 619 | 7 31 . 47 126 79 72 8 24 10 56 30 10 9 17 8 76 3 . 6 . Thermal 259 | 7 44 32 29 24 . 52 34 . . . 37 . . . . . . . . . Explosive 21 | . 4 . . . . . . . . . . . . 7 . . 7 . 3 . Electromagnetic . | . . . . . . . . . . . . . . . . . . . . . Entropic 36 | . . . . . . . . . . . . . . . . 36 . . . . Robot Hit Streak 21 | 5 8 11 13 19 21 8 4 7 2 5 10 4 4 9 4 13 3 . 4 . Robot Miss Streak 6 | 2 3 2 4 5 2 4 2 2 2 6 6 6 3 4 3 4 1 . 2 . Penetration Max 2 | . . . . . . 1 1 1 . 2 1 . . . . 2 2 . . . Secondary Targets 1 | . 1 . . . . . . . . . . . . . . . . . . . Max Gunslinging Chain 1 | . 1 . . . . . . . . . . . . . . . . . . . Shots Hit Robots 636 | 9 50 16 45 102 56 70 22 17 6 38 54 7 8 19 6 89 20 . 2 . Core Hits 424 | 4 29 5 20 64 31 31 10 5 3 32 43 2 8 26 2 79 20 . 10 . Critical Kills 8 | . 1 1 . . . . . . . 6 . . . . . . . . . . Critical Parts Destroyed 9 | . . . . . . . . . . 6 2 . . . . 1 . . . . Critical Strikes 30 | . 3 1 4 . . . . . . 12 2 . . 2 1 2 3 . . . Burn 2 | . 2 . . . . . . . . . . . . . . . . . . . Meltdown 2 | . 1 1 . . . . . . . . . . . . . . . . . . Destroy 14 | . . . . . . . . . . 12 2 . . . . . . . . . Blast 6 | . . . 4 . . . . . . . . . . . 1 1 . . . . Sever 2 | . . . . . . . . . . . . . . 2 . . . . . . Detonate 1 | . . . . . . . . . . . . . . . . 1 . . . . Sunder 3 | . . . . . . . . . . . . . . . . . 3 . . . Melee Attacks 40 | . . . 1 5 3 . . . . . . . . 2 . . 29 . . . Impact . | . . . . . . . . . . . . . . . . . . . . . Slashing 9 | . . . 1 5 3 . . . . . . . . . . . . . . . Piercing . | . . . . . . . . . . . . . . . . . . . . . Entropic 31 | . . . . . . . . . . . . . . 2 . . 29 . . . Sneak Attacks . | . . . . . . . . . . . . . . . . . . . . . Combat Hostiles . | . . . . . . . . . . . . . . . . . . . . . Follow-up Attacks . | . . . . . . . . . . . . . . . . . . . . . Damage Inflicted 37943 | 82 878 316 964 2000 1485 3035 1366 1269 385 2117 2258 282 559 4499 610 13154 1951 . 733 . Guns 2463 | 82 372 . 428 959 576 . . . . . 46 . . . . . . . . . Cannons 26850 | . 261 316 536 966 779 3035 1366 1269 385 2117 2170 220 367 1368 539 10888 231 . 37 . Explosions 6832 | . 242 . . 62 . . . . . . 42 62 192 2761 71 2242 469 . 689 . Melee 1349 | . . . . . 130 . . . . . . . . . . . 1219 . . . Ramming 79 | . 3 . . 13 . . . . . . . . . . . 24 32 . 7 . Kinetic 20485 | 33 185 . 604 1556 1355 1880 312 1269 385 2117 873 220 367 1368 539 7154 231 . 37 . Thermal 7596 | 49 448 316 360 369 . 1155 1054 . . . 1385 62 192 72 71 2063 . . . . Explosive 4294 | . 242 . . 62 . . . . . . . . . 2689 . 143 469 . 689 . Electromagnetic 36 | . . . . . . . . . . . . . . . . 36 . . . . Impact . | . . . . . . . . . . . . . . . . . . . . . Slashing 500 | . . . . . 130 . . . . . . . . 370 . . . . . . Piercing . | . . . . . . . . . . . . . . . . . . . . . Entropic 4953 | . . . . . . . . . . . . . . . . 3734 1219 . . . Highest Corruption 19 | . 3 3 . . . 7 8 8 8 19 4 4 4 4 . 8 16 16 6 7 Average Corruption 6 | . 2 3 . . . 6 7 8 8 8 2 4 4 4 . 5 10 16 2 6 Corruption Purged . | . . . . . . . . . . . . . . . . . . . . . Corruption Blocked . | . . . . . . . . . . . . . . . . . . . . . Effects 254 | . 11 10 . . . 28 16 19 9 25 17 18 5 1 . 44 33 14 4 . Message Errors 65 | . 4 . . . . 12 5 5 2 6 5 4 . . . 11 6 4 1 . Matter Fused 53 | . 2 3 . . . 4 5 4 3 10 . 5 1 . . 6 7 3 . . Heat Flow Errors 28 | . 3 2 . . . 2 . 2 1 3 1 1 1 . . 6 2 2 2 . Energy Discharges 32 | . 1 . . . . 2 3 3 2 1 3 3 . . . 5 7 1 1 . Parts Rejected 3 | . . . . . . 1 . . . 1 1 . . . . . . . . . Parts Fused 3 | . . . . . . . . . . . 1 . . . . 1 . 1 . . Data Loss (minor) 38 | . . 2 . . . 3 2 5 1 1 5 5 2 . . 6 5 1 . . Data Loss (major) 14 | . . 1 . . . 2 1 . . 1 1 . 1 . . 4 2 1 . . Misfires 2 | . 1 1 . . . . . . . . . . . . . . . . . . Alerts 7 | . . 1 . . . 1 . . . . . . . 1 . 3 . 1 . . Misdirections 4 | . . . . . . . . . . . . . . . . . 4 . . . Weapon Failures 5 | . . . . . . 1 . . . 2 . . . . . 2 . . . . Overload Shots . | . . . . . . . . . . . . . . . . . . . . . Overflow Damage 2397 | . 2 . 23 . 111 112 22 . 10 128 59 . 11 157 21 1496 168 . 77 . Projectiles 1839 | . . . 23 . 69 112 22 . 10 128 59 . 11 115 . 1260 14 . 16 . Explosions 355 | . 2 . . . . . . . . . . . . 42 21 229 . . 61 . Melee 203 | . . . . . 42 . . . . . . . . . . 7 154 . . . Knockbacks 105 | . . . 5 9 4 17 4 . . 17 4 2 . 5 1 34 2 . 1 . Impact . | . . . . . . . . . . . . . . . . . . . . . Kinetic 93 | . . . 4 7 4 16 2 . . 17 4 2 . 5 1 29 1 . 1 . Secondary 12 | . . . 1 2 . 1 2 . . . . . . . . 5 1 . . . Self-Inflicted Damage 521 | . 1 . . 58 . . . . . 78 . . 22 . . 70 213 . 79 . Shots 13 | . . . . 1 . . . . . 1 . . 1 . . 3 5 . 2 . Rammed 5 | . 1 . . 1 . . . . . . . . . . . . . . 3 . Targets Rammed 13 | . 1 . . 1 . . . . . . . . . . . 2 6 . 3 . Kicked 8 | . . . . . . . . . . . . . . . . 2 6 . . . Crushed . | . . . . . . . . . . . . . . . . . . . . . Highest Temperature 597 | 70 255 249 229 171 338 266 104 228 171 597 404 314 198 90 90 257 235 170 201 . Average Temperature 94 | 32 74 67 60 48 114 43 30 71 64 179 166 124 95 29 28 65 113 91 92 . Received Heat Transfer 3545 | . 123 36 153 315 78 429 112 17 27 307 436 . 135 49 25 489 544 . 270 . Effects 16 | . . . . . 2 . . . . 8 6 . . . . . . . . . Energy Bleed 4 | . . . . . 2 . . . . 2 . . . . . . . . . . Interference 6 | . . . . . . . . . . 2 4 . . . . . . . . . Matter Decay 2 | . . . . . . . . . . 1 1 . . . . . . . . . Short Circuit 2 | . . . . . . . . . . 1 1 . . . . . . . . . Damage (minor) 1 | . . . . . . . . . . 1 . . . . . . . . . . Damage (core) 1 | . . . . . . . . . . 1 . . . . . . . . . . Siege Activations . | . . . . . . . . . . . . . . . . . . . . . Martial Activations . | . . . . . . . . . . . . . . . . . . . . . Shielding Activations . | . . . . . . . . . . . . . . . . . . . . . Robots Disrupted . | . . . . . . . . . . . . . . . . . . . . . Combat Hostiles . | . . . . . . . . . . . . . . . . . . . . . Robots Corrupted 1 | . . . . . . . . . . . . . . . . 1 . . . . Combat Hostiles . | . . . . . . . . . . . . . . . . . . . . . Parts Fried 7 | . . . . . . . . . . . . . . . . 7 . . . . Impact Corruptions 3 | . . . . . . . 1 . . . . . . . . 2 . . . . Robots Melted 3 | . 1 1 . . . . . . . . . . . 1 . . . . . . Combat Hostiles 2 | . . 1 . . . . . . . . . . . 1 . . . . . . Parts Melted 12 | . 4 3 . . . 3 1 . . . . . . . . 1 . . . . Heat Transferred 7185 | 148 1258 592 460 666 . 1225 762 . . . 74 50 100 50 50 1750 . . . . Parts Sabotaged 2 | . . . . . . . . . . . . . . . . . 2 . . . Parts Stolen . | . . . . . . . . . . . . . . . . . . . . . Parts Stripped . | . . . . . . . . . . . . . . . . . . . . . Power Chain Reactions 13 | . . . . . . . . . . . 1 1 1 1 1 8 . . . . Alert | -11 -10 -10 -8 -8 -8 -6 -6 -6 -6 -6 -5 -5 -5 -5 -4 -4 -4 -4 -3 -3 ------- Run | Yrd Mat Sub Mat Sto Rec Fac Ext Cet Arc Hub Fac Upp Upp War Pro Fac Arm Lab Res Tes Maximum Alert Level 5 | . . . . 2 . 1 1 1 . 3 2 . . . . 5 4 . 1 . Low Security (%) 59 | 100 100 . 100 47 100 69 60 32 100 19 . . . . . 42 . . 60 100 Level 1 14 | . . . . 50 . 30 39 67 . 1 . . . . . 5 . . 39 . Level 2 10 | . . . . 2 . . . . . 4 100 . . . . 11 . . . . Level 3 9 | . . . . . . . . . . 74 . . . . . 23 32 . . . Level 4 4 | . . . . . . . . . . . . . . . . . 67 . . . Level 5 . | . . . . . . . . . . . . . . . . 5 . . . . High Security 1 | . . . . . . . . . . . . . . . . 10 . . . . Max Security . | . . . . . . . . . . . . . . . . . . . . . Peak Influence 2064 | 5 185 . 134 410 193 247 280 341 194 1087 628 . . . . 2064 1247 . 340 191 Initial 1100 | . . . . 42 151 176 120 147 58 29 516 . . . . . 1100 . . 191 Average 315 | 1 60 . 52 221 37 182 171 227 130 670 545 . . . . 633 1119 . 144 190 Influence Increases 9932 | 10 387 . 355 820 346 693 556 324 196 1441 515 30 90 305 65 2524 716 . 559 . Destroy 0b10 Robot/C 4360 | . 240 . 220 380 220 380 260 160 80 500 320 20 80 280 40 920 200 . 60 . Destroy 0b10 Robot/NC 390 | 10 25 . 10 30 60 5 10 10 . 55 20 . . 10 . 135 5 . 5 . Destroy Leader 786 | . 56 . 62 114 . 80 24 . . 116 70 10 10 . 10 194 30 . 10 . Allied During Kill 802 | . . . . . . . 155 119 80 448 . . . . . . . . . . Successful Hack 98 | . 14 . 10 16 45 . 7 . . . 6 . . . . . . . . . Disable Machine 930 | . . . . 45 15 75 75 15 30 135 30 . . . . 435 30 . 45 . Anti-Garrison Action 350 | . . . . 200 . . . . . . . . . . . 150 . . . . Destroy Structure 1036 | . 22 . 8 20 6 38 25 20 6 127 54 . . . . 570 76 . 64 . Advance Influence 100 | . . . . . . 100 . . . . . . . . . . . . . . Partial Spotted 75 | . . . . . . . . . . 15 . . . . . . 15 . 45 . Lose Combat Pursuer 1005 | . 30 . 45 15 . 15 . . . 45 15 . . 15 15 120 360 . 330 . Influence Decreases 9841 | 10 290 97 255 532 552 628 539 443 257 470 1049 551 90 54 316 460 1608 1262 219 159 Entered New Map 4283 | . . 47 . 58 237 106 127 117 87 55 539 194 . . 251 . 1054 1262 . 149 Time Decay 4968 | 10 270 50 255 474 315 482 302 326 130 355 490 357 90 54 65 430 374 . 129 10 Lost Part 410 | . 20 . . . . 40 10 . . 20 20 . . . . 30 180 . 90 . Lost Ally 180 | . . . . . . . 100 . 40 40 . . . . . . . . . . Squads Dispatched 49 | . 2 . 2 2 . 6 1 . . 8 2 . . . . 16 6 . 4 . Investigation 4 | . . . . 1 . 2 1 . . . . . . . . . . . . . Extermination 12 | . . . . . . 3 . . . 1 2 . . . . 3 2 . 1 . Reinforcement 20 | . 2 . 2 1 . 1 . . . 5 . . . . . 4 2 . 3 . Assault 10 | . . . . . . . . . . 1 . . . . . 7 2 . . . Garrison 3 | . . . . . . . . . . 1 . . . . . 2 . . . . Intercept . | . . . . . . . . . . . . . . . . . . . . . Searches Triggered . | . . . . . . . . . . . . . . . . . . . . . Construction Impeded 5 | . . . . . . 1 . . . 1 . . . . . 3 . . . . Haulers Reinforced 2 | . . . . . . . . . . . . . . . . 1 . . 1 . Active Scanning Responses . | . . . . . . . . . . . . . . . . . . . . . Cargo Convoy Interrupts . | . . . . . . . . . . . . . . . . . . . . . Stealth | -11 -10 -10 -8 -8 -8 -6 -6 -6 -6 -6 -5 -5 -5 -5 -4 -4 -4 -4 -3 -3 --------- Run | Yrd Mat Sub Mat Sto Rec Fac Ext Cet Arc Hub Fac Upp Upp War Pro Fac Arm Lab Res Tes Distress Signals 21 | . 1 . 2 2 . . 2 2 . 3 1 . . 1 . 1 2 . 4 . Communications Jammed . | . . . . . . . . . . . . . . . . . . . . . Distress Signals . | . . . . . . . . . . . . . . . . . . . . . Times Spotted 401 | . 21 4 14 30 10 24 13 9 7 39 21 1 4 38 3 68 42 . 48 5 Peak Tracking Total 17 | . 3 1 3 4 2 4 4 5 2 8 6 1 4 13 3 8 15 . 17 5 Tactical Retreats 30 | . 2 . 2 1 . 1 . . . 2 1 . . 1 1 5 6 . 8 . Traps | -11 -10 -10 -8 -8 -8 -6 -6 -6 -6 -6 -5 -5 -5 -5 -4 -4 -4 -4 -3 -3 ------- Run | Yrd Mat Sub Mat Sto Rec Fac Ext Cet Arc Hub Fac Upp Upp War Pro Fac Arm Lab Res Tes Traps Triggered 10 | . 3 . . . . 3 1 . . . . . . . . 3 . . . . Indirectly . | . . . . . . . . . . . . . . . . . . . . . Trap Hack Attempts . | . . . . . . . . . . . . . . . . . . . . . Triggered . | . . . . . . . . . . . . . . . . . . . . . Disarmed . | . . . . . . . . . . . . . . . . . . . . . Reprogrammed . | . . . . . . . . . . . . . . . . . . . . . Reused . | . . . . . . . . . . . . . . . . . . . . . Traps Extracted . | . . . . . . . . . . . . . . . . . . . . . Installed . | . . . . . . . . . . . . . . . . . . . . . Triggered . | . . . . . . . . . . . . . . . . . . . . . Machines | -11 -10 -10 -8 -8 -8 -6 -6 -6 -6 -6 -5 -5 -5 -5 -4 -4 -4 -4 -3 -3 ---------- Run | Yrd Mat Sub Mat Sto Rec Fac Ext Cet Arc Hub Fac Upp Upp War Pro Fac Arm Lab Res Tes Machines Disabled 67 | . . . . 3 1 5 8 1 2 9 2 . . 1 . 30 2 . 3 . Max in Single Turn 9 | . . . . 1 1 1 1 1 1 6 1 . . 1 . 9 1 . 1 . Garrison Access 3 | . . . . 1 . . . . . . 1 . . . . 1 . . . . Network Hub 1 | . . . . . . . . . . 1 . . . . . . . . . . Machines Repaired . | . . . . . . . . . . . . . . . . . . . . . Machines Dismantled 2 | . . . . . . . 1 1 . . . . . . . . . . . . Machines Sabotaged . | . . . . . . . . . . . . . . . . . . . . . Overloaded Fab Kills . | . . . . . . . . . . . . . . . . . . . . . Hacking | -11 -10 -10 -8 -8 -8 -6 -6 -6 -6 -6 -5 -5 -5 -5 -4 -4 -4 -4 -3 -3 --------- Run | Yrd Mat Sub Mat Sto Rec Fac Ext Cet Arc Hub Fac Upp Upp War Pro Fac Arm Lab Res Tes Machines Accessed 50 | . 6 . 2 8 16 1 5 1 1 . 3 . . 4 . 1 1 . 1 . Terminals 30 | . 6 . 1 7 6 1 5 1 . . . . . . . 1 1 . 1 . Fabricators . | . . . . . . . . . . . . . . . . . . . . . Repair Stations . | . . . . . . . . . . . . . . . . . . . . . Recycling Units 11 | . . . . . 9 . . . . . 2 . . . . . . . . . Scanalyzers 1 | . . . 1 . . . . . . . . . . . . . . . . . Garrison Access 2 | . . . . 1 . . . . . . 1 . . . . . . . . . Total Hacks 89 | . 10 . 4 13 34 2 9 1 1 . 7 . . 4 . 1 1 . 2 . Successful 47 | . 5 . 4 6 22 . 1 . 1 . 3 . . 4 . . 1 . . . Failed 42 | . 5 . . 7 12 2 8 1 . . 4 . . . . 1 . . 2 . Catastrophic 8 | . 1 . . . 3 . 1 1 . . 1 . . . . . . . 1 . Database Lockouts . | . . . . . . . . . . . . . . . . . . . . . Manual 62 | . 10 . 1 11 32 . . 1 . . 4 . . . . 1 . . 2 . Terminals 46 | . 10 . 1 11 8 2 9 1 . . . . . . . 1 1 . 2 . Fabricators . | . . . . . . . . . . . . . . . . . . . . . Repair Stations . | . . . . . . . . . . . . . . . . . . . . . Recycling Units 28 | . . . . . 24 . . . . . 4 . . . . . . . . . Scanalyzers 3 | . . . 3 . . . . . . . . . . . . . . . . . Garrison Access 5 | . . . . 2 . . . . . . 3 . . . . . . . . . Terminal Hacks 11 | . . . 1 1 2 . 1 . 1 . . . . 4 . . 1 . . . Record 4 | . . . . . . . . . 1 . . . . 3 . . . . . . Open Door 4 | . . . . 1 . . 1 . . . . . . 1 . . 1 . . . Branch Access Points 1 | . . . 1 . . . . . . . . . . . . . . . . . Release Object 2 | . . . . . 2 . . . . . . . . . . . . . . . Fabricator Hacks . | . . . . . . . . . . . . . . . . . . . . . Repair Station Hacks . | . . . . . . . . . . . . . . . . . . . . . Recycling Unit Hacks . | . . . . . . . . . . . . . . . . . . . . . Scanalyzer 3 | . . . 3 . . . . . . . . . . . . . . . . . Retrieve Study 3 | . . . 3 . . . . . . . . . . . . . . . . . Garrison Access Hacks 1 | . . . . . . . . . . . 1 . . . . . . . . . Seal Access 1 | . . . . . . . . . . . 1 . . . . . . . . . Unauthorized Hacks 32 | . 5 . . 5 20 . . . . . 2 . . . . . . . . . Terminals 14 | . 5 . . 4 5 . . . . . . . . . . . . . . . Assimilate 1 | . 1 . . . . . . . . . . . . . . . . . . . Skim 13 | . 4 . . 4 5 . . . . . . . . . . . . . . . Fabricators . | . . . . . . . . . . . . . . . . . . . . . Repair Stations . | . . . . . . . . . . . . . . . . . . . . . Recycling Units 17 | . . . . . 15 . . . . . 2 . . . . . . . . . Reject 8 | . . . . . 7 . . . . . 1 . . . . . . . . . Mask 9 | . . . . . 8 . . . . . 1 . . . . . . . . . Scanalyzers . | . . . . . . . . . . . . . . . . . . . . . Garrison Access 1 | . . . . 1 . . . . . . . . . . . . . . . . Jam 1 | . . . . 1 . . . . . . . . . . . . . . . . Data Cores Recovered . | . . . . . . . . . . . . . . . . . . . . . Used . | . . . . . . . . . . . . . . . . . . . . . Hacking Detections 27 | . 4 . 1 6 7 1 4 1 . . 1 . . . . 1 . . 1 . Full Trace Events 4 | . 1 . . . 2 . 1 . . . . . . . . . . . . . Feedback Events . | . . . . . . . . . . . . . . . . . . . . . Feedback Blocked . | . . . . . . . . . . . . . . . . . . . . . Robot Schematics Acquired . | . . . . . . . . . . . . . . . . . . . . . Robots Built . | . . . . . . . . . . . . . . . . . . . . . Authchips . | . . . . . . . . . . . . . . . . . . . . . Time . | . . . . . . . . . . . . . . . . . . . . . Total Robot Build Rating . | . . . . . . . . . . . . . . . . . . . . . Part Schematics Acquired . | . . . . . . . . . . . . . . . . . . . . . Parts Built . | . . . . . . . . . . . . . . . . . . . . . Authchips . | . . . . . . . . . . . . . . . . . . . . . Time . | . . . . . . . . . . . . . . . . . . . . . Total Part Build Rating . | . . . . . . . . . . . . . . . . . . . . . Part Studies Acquired 3 | . . . 3 . . . . . . . . . . . . . . . . . Parts Repaired . | . . . . . . . . . . . . . . . . . . . . . Time . | . . . . . . . . . . . . . . . . . . . . . Parts Recycled . | . . . . . . . . . . . . . . . . . . . . . Recycled Matter . | . . . . . . . . . . . . . . . . . . . . . Retrieved Matter . | . . . . . . . . . . . . . . . . . . . . . Retrieved Components . | . . . . . . . . . . . . . . . . . . . . . Parts Scanalyzed . | . . . . . . . . . . . . . . . . . . . . . Part Schematics Acquired . | . . . . . . . . . . . . . . . . . . . . . Parts Damaged . | . . . . . . . . . . . . . . . . . . . . . Bothacking | -11 -10 -10 -8 -8 -8 -6 -6 -6 -6 -6 -5 -5 -5 -5 -4 -4 -4 -4 -3 -3 ------------ Run | Yrd Mat Sub Mat Sto Rec Fac Ext Cet Arc Hub Fac Upp Upp War Pro Fac Arm Lab Res Tes Used RIF Installer . | . . . . . . . . . . . . . . . . . . . . . Robots Hacked . | . . . . . . . . . . . . . . . . . . . . . Non-combat . | . . . . . . . . . . . . . . . . . . . . . Combat . | . . . . . . . . . . . . . . . . . . . . . Robot Hacks Applied . | . . . . . . . . . . . . . . . . . . . . . Relay Couplers Released 2 | . . . . . . . . . . . . . . . . 2 . . . . Machine Destruction 2 | . . . . . . . . . . . . . . . . 2 . . . . Fabnet Peak Effective % . | . . . . . . . . . . . . . . . . . . . . . Robots Rewired . | . . . . . . . . . . . . . . . . . . . . . Allies Hacked . | . . . . . . . . . . . . . . . . . . . . . Hacks Repelled . | . . . . . . . . . . . . . . . . . . . . . Allies | -11 -10 -10 -8 -8 -8 -6 -6 -6 -6 -6 -5 -5 -5 -5 -4 -4 -4 -4 -3 -3 -------- Run | Yrd Mat Sub Mat Sto Rec Fac Ext Cet Arc Hub Fac Upp Upp War Pro Fac Arm Lab Res Tes Total Allies 14 | . . . . . . . 9 5 . . . . . . . . . . . . Largest Group 9 | . . . . . . . 8 9 9 5 . . . . . . . . . . Highest-Rated Group 703 | . . . . . . . 350 703 703 480 . . . . . . . . . . Highest-Rated Ally 159 | . . . . . . . 159 159 146 96 . . . . . . . . . . Total Orders . | . . . . . . . . . . . . . . . . . . . . . Ally Attacks 195 | . . . . . . . 55 38 31 71 . . . . . . . . . . Total Damage 6558 | . . . . . . . 1448 1506 1200 2404 . . . . . . . . . . Kills 37 | . . . . . . . 8 8 4 17 . . . . . . . . . . Allies Corrupted . | . . . . . . . . . . . . . . . . . . . . . Allies Melted . | . . . . . . . . . . . . . . . . . . . . . Intel | -11 -10 -10 -8 -8 -8 -6 -6 -6 -6 -6 -5 -5 -5 -5 -4 -4 -4 -4 -3 -3 ------- Run | Yrd Mat Sub Mat Sto Rec Fac Ext Cet Arc Hub Fac Upp Upp War Pro Fac Arm Lab Res Tes Active Infowar (turns) 7940 | 31 839 617 748 461 . 545 668 3 . 23 . 782 16 . 674 1764 678 . 91 . Optics 2442 | . . . . . . . . . . . . . . . . 1764 678 . . . Sensors 1305 | . . . . . . 545 668 3 . . . . . . . . . . 89 . IFF 1469 | . . . . . . . . . . . . 782 16 . 671 . . . . . Terrain 3 | . . . . . . . . . . . . . . . 3 . . . . . Structural 23 | . . . . . . . . . . 23 . . . . . . . . . . Seismic 3382 | 31 839 617 748 461 . . . . . . . . . . . 645 41 . . . ECM 2 | . . . . . . . . . . . . . . . . . . . 2 . Robot Analysis Total . | . . . . . . . . . . . . . . . . . . . . . Derelict Logs Recovered 5 | . . 1 . . . . . . . . . 2 . . 2 . . . . . Drone Launches . | . . . . . . . . . . . . . . . . . . . . . Drone Recoveries . | . . . . . . . . . . . . . . . . . . . . . Exploration | -11 -10 -10 -8 -8 -8 -6 -6 -6 -6 -6 -5 -5 -5 -5 -4 -4 -4 -4 -3 -3 ------------- Run | Yrd Mat Sub Mat Sto Rec Fac Ext Cet Arc Hub Fac Upp Upp War Pro Fac Arm Lab Res Tes Turns Passed 18613 | 89 839 617 748 1208 3166 1248 668 732 261 904 1285 980 442 1301 746 1764 860 380 355 20 Spaces Moved 11046 | 61 500 356 391 552 1958 784 431 363 146 457 701 604 270 743 456 898 695 16 624 40 Core 451 | 13 . . . . . . . . . . . . . . . . 34 . 364 40 Treads 3246 | . . 188 391 552 909 . 43 363 146 457 197 . . . . . . . . . Legs 3914 | . . . . . . 133 . . . . 504 604 270 743 456 898 306 . . . Wheels 1125 | 48 500 168 . . 409 . . . . . . . . . . . . . . . Hover 1679 | . . . . . 640 651 388 . . . . . . . . . . . . . Flight 631 | . . . . . . . . . . . . . . . . . 355 16 260 . Fastest Speed 31 | 50 100 100 160 160 91 78 94 94 157 157 157 157 157 157 157 138 31 35 34 50 Average Speed 127 | 89 100 134 160 160 117 81 94 120 157 157 157 157 157 157 157 153 105 35 45 50 Slowest Speed 191 | 100 100 160 160 160 160 94 94 157 157 157 157 157 157 157 157 191 191 35 50 50 Overloaded Moves . | . . . . . . . . . . . . . . . . . . . . . Propulsion Burnouts . | . . . . . . . . . . . . . . . . . . . . . Robots Hopped 4 | . . . . . . . . . . . . . . . . . 4 . . . Potential Cave-ins . | . . . . . . . . . . . . . . . . . . . . . Cave-ins Triggered . | . . . . . . . . . . . . . . . . . . . . . Exploration Rate (%) 47 | 3 91 25 42 77 99 14 55 80 90 30 13 71 46 77 62 30 57 6 23 11 Regions Visited 20 Branch Regions 14 Pre-discovered Areas 3 | . . 1 . . 1 . . . . . . . . 1 . . . . . . Known Exits Taken 11 | . . . 1 . 1 1 1 1 1 1 1 . . . . 1 . 1 1 . Unknown Exits Taken 9 | 1 1 1 . 1 . . . . . . . 1 1 1 1 . 1 . . . Scrap Searched 7 | . . . . . . . . . . . . 4 . . 3 . . . . . Spaces Dug 43 | . . . 1 4 1 1 1 . . 1 . 2 . 1 2 10 2 . 17 . Terrain Destroyed 868 | . 28 . 6 17 3 38 16 8 5 189 33 9 13 60 24 341 49 . 29 . Melee 9 | . . . 1 4 1 . . . . . . . . 1 . . 2 . . . Projectile 317 | . . . 5 2 2 38 16 8 5 28 30 7 7 8 9 149 . . 3 . AOE 541 | . 28 . . 11 . . . . . 160 3 2 6 51 15 192 47 . 26 . Terrain Rammed 1 | . . . . . . . . . . . . . . . . . 1 . . . Walls Destroyed . | . . . . . . . . . . . . . . . . . . . . . Machines Disabled . | . . . . . . . . . . . . . . . . . . . . . Actions | -11 -10 -10 -8 -8 -8 -6 -6 -6 -6 -6 -5 -5 -5 -5 -4 -4 -4 -4 -3 -3 --------- Run | Yrd Mat Sub Mat Sto Rec Fac Ext Cet Arc Hub Fac Upp Upp War Pro Fac Arm Lab Res Tes Total 14698 | 79 766 462 461 788 2784 1290 646 621 170 599 829 628 280 842 472 1101 768 389 683 40 Wait 2403 | . 203 67 7 112 740 335 138 198 11 48 40 7 1 45 1 38 9 374 29 . Move 11019 | 60 499 355 390 551 1957 783 430 362 145 456 700 603 269 742 455 897 687 15 623 40 Hop 3 | . . . . . . . . . . . . . . . . . 3 . . . Pick Up 130 | 5 11 4 14 9 5 18 12 7 2 12 9 2 . 5 1 10 3 . 1 . Fast Attach 72 | 7 . . . 7 1 6 1 1 . 4 5 1 . 9 1 6 13 . 10 . Attach 36 | . 2 1 4 1 2 3 3 3 . 1 4 1 . 1 . 5 3 . 2 . Detach 38 | . . . . . 10 4 1 3 . 4 4 1 . 2 1 4 1 . 3 . Swap 77 | . 5 5 5 25 2 1 . 3 . 2 5 1 1 3 4 14 . . 1 . Drop 156 | . 2 4 12 27 20 15 10 10 2 14 10 2 . 11 1 11 3 . 2 . Fire 690 | 7 43 26 28 50 43 125 42 24 10 58 52 10 9 22 8 114 10 . 9 . Melee 40 | . . . 1 5 3 . . . . . . . . 2 . . 29 . . . Ram 5 | . 1 . . . . . . . . . . . . . . . 1 . 3 . Kick 8 | . . . . . . . . . . . . . . . . 2 6 . . . Crush 1 | . . . . 1 . . . . . . . . . . . . . . . . Escape Stasis 1 | . . . . . . . 1 . . . . . . . . . . . . . Rewire 1 | . . . . . 1 . . . . . . . . . . . . . . . Trap . | . . . . . . . . . . . . . . . . . . . . . Miscellaneous 18 | . . . . . . . 8 10 . . . . . . . . . . . . Route ------- -11/Scrapyard -10/Materials (discovered 5 exits: [*Mat x3] / [*Min] / [*Sub]) -10/Subcaves -8/Materials (discovered 3 exits: [*Fac] / *Sto x2) -8/Storage -8/Recycling -6/Factory (discovered 5 exits: Fac x2 / Low x2 / *Ext) -6/Extension (discovered 2 exits: *Fac / *Cet) -6/Cetus (discovered 2 exits: *Fac / *Arc) -6/Archives (discovered 3 exits: *Fac / *Hub x2) -6/Hub_04(d) (discovered 2 exits: *Fac x2) -5/Factory (discovered 2 exits: *Fac / *Upp) -5/Upper Caves -5/Upper Caves -5/Warlord -4/Proximity Caves -4/Factory (discovered 2 exits: *Res / *Arm) -4/Armory -4/Lab -3/Research -3/Testing History --------- Turn | Location | Event 39 | -11/Scrapyard | Discovered new exit (range 15) 90 | -11/Scrapyard | Entered Materials 165 | -10/Materials | Discovered new exit (range 11) 263 | -10/Materials | Discovered new exit (range 7) 304 | -10/Materials | Build established: Mutant 426 | -10/Materials | Discovered new exit (range 16) 688 | -10/Materials | Destroyed 7 combat bots 708 | -10/Materials | Discovered new exit (range 14) 910 | -10/Materials | Discovered new exit (range 8) 929 | -10/Materials | Entered Subcaves 930 | -10/Subcaves | Approached by a straggling Scientist 956 | -10/Subcaves | Shifting Twisted Machinery released Sub. Beam Cannon 997 | -10/Subcaves | Shifting Twisted Machinery released Battle Rifle 1058 | -10/Subcaves | Core integrity fell below 50% 1424 | -10/Subcaves | A swath of the cavern ceiling suddenly collapsed 1481 | -10/Subcaves | Shifting Twisted Machinery released Battle Cannon 1524 | -10/Subcaves | Discovered new exit (range 14) 1546 | -10/Subcaves | Entered Materials 1546 | -8/Materials | Evolved 4 slots: Propulsion x2, Utility x1, Weapon x1 1859 | -8/Materials | Build established: Gunner 2161 | -8/Materials | Identified exit to Storage 2234 | -8/Materials | Discovered new exit (range 16) 2294 | -8/Materials | Entered Storage 3430 | -8/Storage | Build established: Scavenger-Gunner 3475 | -8/Storage | Used back door to open Recycling access 3475 | -8/Storage | Discovered new exit (range 5) 3502 | -8/Storage | Entered Recycling 4162 | -8/Recycling | Learned 4 Factory zone layouts 4205 | -8/Recycling | Learned location of 2 exits from Factory 4238 | -8/Recycling | Learned location of Extension (-6) 4261 | -8/Recycling | Learned Storage security intel 4275 | -8/Recycling | Learned 4 Factory zone layouts 4281 | -8/Recycling | Learned Factory stockpile data 4307 | -8/Recycling | Entered Scraplab 4321 | -8/Recycling | Found Prototype Device 4321 | -8/Recycling | Identified Scrap Engine 4334 | -8/Recycling | Identified exit to Factory 4371 | -8/Recycling | Learned location of 2 exits from Lower Caves 4611 | -8/Recycling | Build established: Mutant 5147 | -8/Recycling | Build established: Construct 6668 | -8/Recycling | Entered Factory 6668 | -6/Factory | Evolved 4 slots: Power x1, Propulsion x1, Utility x2 6669 | -6/Factory | Identified exit to Lower Caves 6670 | -6/Factory | Identified exit to Extension 6670 | -6/Factory | Identified exit to Factory 7061 | -6/Factory | Lost 3 parts (1p2u) 7916 | -6/Factory | Entered Extension 7951 | -6/Extension | Rescued a captive Derelict 7951 | -6/Extension | Rescued a captive Derelict 7989 | -6/Extension | Rescued a captive Derelict 8004 | -6/Extension | Rescued a captive Derelict 8004 | -6/Extension | Rescued a captive Derelict 8061 | -6/Extension | Rescued A7 8121 | -6/Extension | Rescued a captive Derelict 8122 | -6/Extension | Rescued a captive Derelict 8214 | -6/Extension | Rescued a captive Derelict 8361 | -6/Extension | Spotted B-75 Beast 8371 | -6/Extension | Destroyed B-75 Beast 8373 | -6/Extension | Spotted B-75 Beast 8405 | -6/Extension | Allies destroyed B-75 Beast 8505 | -6/Extension | Discovered new exit (range 16) 8506 | -6/Extension | Discovered exit to Factory (range 15) 8574 | -6/Extension | Identified exit to Cetus 8584 | -6/Extension | Entered Cetus 8584 | -6/Cetus | Accompanied by 4 allies (A7) 8589 | -6/Cetus | Acquired a Cetus Manufacturing Module code from A7 8601 | -6/Cetus | Spotted Cetus Guard 8602 | -6/Cetus | Spotted Cetus Guard 8604 | -6/Cetus | Spotted Cetus Guard 8604 | -6/Cetus | Spotted Cetus Guard 8606 | -6/Cetus | Destroyed Cetus Guard 8609 | -6/Cetus | Allies destroyed Cetus Guard 8620 | -6/Cetus | Allies destroyed Cetus Guard 8640 | -6/Cetus | Allies destroyed Cetus Guard 8703 | -6/Cetus | Escorted A7 to Cetus Mainframe 8724 | -6/Cetus | Started Cetus Manufacturing Module 8749 | -6/Cetus | Manufactured an Enhanced Grunt 8774 | -6/Cetus | Manufactured an Enhanced Grunt 8799 | -6/Cetus | Manufactured an Enhanced Grunt 8804 | -6/Cetus | Discovered new exit (range 15) 8821 | -6/Cetus | Spotted Cetus Guard 8824 | -6/Cetus | Manufactured an Enhanced Grunt 8824 | -6/Cetus | Spotted Cetus Guard 8826 | -6/Cetus | Spotted Cetus Guard 8833 | -6/Cetus | Allies destroyed Cetus Guard 8833 | -6/Cetus | Spotted Cetus Guard 8843 | -6/Cetus | Allies destroyed Cetus Guard 8845 | -6/Cetus | Allies destroyed Cetus Guard 8847 | -6/Cetus | Destroyed Cetus Guard 8849 | -6/Cetus | Manufactured an Enhanced Grunt 8854 | -6/Cetus | Discovered exit to Factory (range 15) 8859 | -6/Cetus | Met Revision 17 9120 | -6/Cetus | Build established: Commander-Construct 9301 | -6/Cetus | Identified exit to Archives 9316 | -6/Cetus | Entered Archives 9316 | -6/Archives | Accompanied by 9 allies (A7) 9321 | -6/Archives | Received a hacking code to weaken MAIN.C 9376 | -6/Archives | Discovered new exit (range 15) 9380 | -6/Archives | Lost 3 allies 9395 | -6/Archives | Unable to access archive contents 9398 | -6/Archives | Discovered new exit (range 16) 9524 | -6/Archives | Discovered exit to Factory (range 16) 9566 | -6/Archives | Identified exit to Hub_04(d) 9577 | -6/Archives | Entered Hub_04(d) 9577 | -6/Hub_04(d) | Accompanied by 5 allies 9585 | -6/Hub_04(d) | Discovered exit to Factory (range 13) 9865 | -6/Hub_04(d) | Core integrity fell below 50% 10151 | -6/Hub_04(d) | Build established: Construct 10177 | -6/Hub_04(d) | Discovered exit to Factory (range 4) 10277 | -6/Hub_04(d) | First assault squad dispatched 10449 | -6/Hub_04(d) | Network Hub disabled 10452 | -6/Hub_04(d) | Spotted Lightning 10452 | -6/Hub_04(d) | Spotted Lightning 10452 | -6/Hub_04(d) | Spotted Lightning 10458 | -6/Hub_04(d) | Garrison activated, responded to threat 10459 | -6/Hub_04(d) | System corruption reached 10% 10475 | -6/Hub_04(d) | Spotted Lightning 10476 | -6/Hub_04(d) | Spotted Lightning 10481 | -6/Hub_04(d) | Entered Factory 10481 | -5/Factory | Evolved 2 slots: Propulsion x1, Utility x1 10902 | -5/Factory | Discovered new exit (range 5) 10961 | -5/Factory | Discovered new exit (range 9) 11765 | -5/Factory | Identified exit to Upper Caves 11766 | -5/Factory | Entered Upper Caves 12133 | -5/Upper Caves | Found DCF Scrap (14 items) 12206 | -5/Upper Caves | Learned 8 Factory zone layouts 12464 | -5/Upper Caves | Learned Factory stockpile data 12685 | -5/Upper Caves | Discovered new exit (range 6) 12746 | -5/Upper Caves | Entered another Upper Caves area 13180 | -5/Upper Caves | Discovered new exit (range 6) 13188 | -5/Upper Caves | Entered Warlord 13239 | -5/Warlord | System corruption cleaned by Quarantine Array 13360 | -5/Warlord | Received a Watcher feed algorithm from an ecstatic Tinkerer 13418 | -5/Warlord | Learned location of Armory (-4) 13421 | -5/Warlord | Learned Factory repair station intel 13537 | -5/Warlord | Found Prototype Special Weapon 13537 | -5/Warlord | Identified RU-N14's Throwing Claymores v3 13540 | -5/Warlord | Found RU-N14's Throwing Claymores v3 13546 | -5/Warlord | Found RU-N14's Throwing Claymores v3 13896 | -5/Warlord | Visited the Vortex Lab 13909 | -5/Warlord | Warlord's base attacked by MAIN.C 13910 | -5/Warlord | Found Prototype Energy Gun 13916 | -5/Warlord | Found Prototype Piercing Weapon 14041 | -5/Warlord | Identified Vortex Lance 14080 | -5/Warlord | Found Prototype Device 14080 | -5/Warlord | Identified Thermal Barrier 14209 | -5/Warlord | Met Warlord 14259 | -5/Warlord | Warlord forces counterattacked 14317 | -5/Warlord | Spotted Executioner 14319 | -5/Warlord | Spotted Striker 14320 | -5/Warlord | Spotted Executioner 14336 | -5/Warlord | Spotted B-86 Titan 14340 | -5/Warlord | Spotted B-75 Beast 14356 | -5/Warlord | Destroyed Executioner 14360 | -5/Warlord | Destroyed B-86 Titan 14371 | -5/Warlord | Destroyed B-75 Beast 14390 | -5/Warlord | Lost 11 allies 14392 | -5/Warlord | Destroyed 7 combat bots 14477 | -5/Warlord | Discovered new exit (range 9) 14489 | -5/Warlord | Entered Proximity Caves 14656 | -4/Proximity Caves | Received a Behemoth hack from an annoying Tinkerer 14677 | -4/Proximity Caves | Learned 4 Research zone layouts 15015 | -4/Proximity Caves | Learned 4 Research zone layouts 15227 | -4/Proximity Caves | Discovered new exit (range 6) 15235 | -4/Proximity Caves | Entered Factory 15235 | -4/Factory | Evolved 2 slots: Utility x2 15236 | -4/Factory | Identified exit to Armory 15239 | -4/Factory | Loaded intel: 6 repair station locations 15634 | -4/Factory | Destroyed 7 combat bots 15812 | -4/Factory | Discovered new exit (range 21) 15941 | -4/Factory | Identified exit to Research 16058 | -4/Factory | Spotted B-86 Titan 16321 | -4/Factory | Destroyed 7 combat bots 16566 | -4/Factory | Garrison activated, responded to threat 16735 | -4/Factory | First assault squad dispatched 16803 | -4/Factory | Found Quantum Capacitor 16809 | -4/Factory | High security lockdown imminent 16889 | -4/Factory | High security lockdown engaged 16999 | -4/Factory | Entered Armory 17032 | -4/Armory | Found Prototype Launcher 17032 | -4/Armory | Identified Smartbomb Launcher 17079 | -4/Armory | Lost 5 parts (1p2u2w) 17320 | -4/Armory | Build established: Mutant 17499 | -4/Armory | First assault squad dispatched 17663 | -4/Armory | System corruption reached 10% 17696 | -4/Armory | Released all parts (4) 17701 | -4/Armory | Core integrity fell below 50% 17755 | -4/Armory | Lost 8 parts (2p2n2u2w) 17819 | -4/Armory | Spotted Armor Guard 17819 | -4/Armory | Spotted Armor Guard 17836 | -4/Armory | Core integrity fell below 20% 17851 | -4/Armory | Lost 4 parts (4n) 17858 | -4/Armory | Discovered new exit (range 5) 17859 | -4/Armory | Entered Lab 17859 | -4/Lab | Discovered exit to Research (range 9) 17864 | -4/Lab | Unable to decrypt terminal 18239 | -4/Lab | Entered Research 18239 | -3/Research | Evolved 2 slots: Utility x1, Weapon x1 18358 | -3/Research | Lost 3 parts (2n1u) 18386 | -3/Research | Found Fusion Bomb Launcher 18411 | -3/Research | Spotted B-86 Titan 18439 | -3/Research | Revision forces began assault on 0b10 18443 | -3/Research | Discovered new exit (range 13) 18462 | -3/Research | Lost 5 parts (3n2u) 18469 | -3/Research | Core integrity fell below 50% 18469 | -3/Research | Spotted B-86 Titan 18520 | -3/Research | Identified exit to Testing 18586 | -3/Research | Core integrity fell below 20% 18594 | -3/Research | Entered Testing 18596 | -3/Testing | Spotted PY-LRBMY6SVKN 18614 | -3/Testing | Destroyed by P-80 Master with Gamma Rifle Last Messages --------------- 18541_ Drone sends a signal. 18544_ Slug penetrates Wall. 18544_ U-05 Engineer builds a Wall. 18547_ Knocked back. 18547_ Slug penetrates Terminal. 18547_ Terminal disabled. 18547_ Slug penetrates Wall. 18548_ U-05 Engineer builds a Wall. 18549_ K-01 Serf collects debris. 18551_ Penetrated by Slug. 18551_ Adv. Signal Interpreter destroyed. 18558_ U-05 Engineer builds a Wall. 18566_ System corrupted: Heat flow error (+247). 18581_ Adv. Heavy Treads destroyed. 18585_ K-01 Serf destroyed. 18590_ Slug penetrates Wall. LOCATION=TESTING GOAL=ESCAPE 18610_ Door malfunctions. 18611_ P-80 Master resets P-80 Master, system corruption cleaned. Map ----- +----------------------------------------------------+ | ?????? ??# #??????????????????????????????? | | ??????###???# #??????????????????????????????? | | ????????????# #??####????????????????????????? | | ????????????# #? ????????????????????????? | | ????????????# #?"""""????????????????????????? | | ????????????# # """"""???????????????????????? | | ????????????# # """"""" #????????????????????? | | ????????????# + #????????????????????? | | ????????????# # #????????????????????? | | ????????????# # #????????????????????? | | ????????????# #? #????????????????????? | | ????????????# #?#########????????????????????? | | ????????????# #??????????????????????????????? | | ????????????# #???#?#????????????????????????? | | ????????????# #???"S"????????????????????????? | | ????????????# #??"" ""???????????????????????? | | ????????????# #?? ????????????????????????? | | ????????????# #? ????????????????????????? | | ????????????# #?"""""????????????????????????? | | ?????????#### # """"""???????????????????????? | | ?????????# # """""" #????????????????????? | | ?????????# pp / [#????????????????????? | | ?????????#p ############+#########?????????? | | ?????????#### w ????????? | | ????????????# ????????? | | ????????????# k @ ????????? | | ????????????# ????????? | | ????????????# #####################??????????? | | ????????????# T??????????????????????????????? | | ????????????# #??????????????????????????????? | | ????????????# #??????????????????????????????? | | ????????????# ???????????????????????????????? | | ????????????# ???????????????????????????????? | | ????????????# ???????????????????????????????? | | ????????????# ???????????????????????????????? | | ????????????/ ???????????????????????????????? | | ????????????# ???????????????????????????????? | | ????????????? ???????????????????????????????? | | ??????????????? ????????????????????????????????? | | ????????????????????????????????????????????????? | | ????????????????????????????????????????????????? | | ????????????????????????????????????????????????? | | ????????????????????????????????????????????????? | | ????????????????????????????????????????????????? | | ????????????????????????????????????????????????? | | ????????????????????????????????????????????????? | | ????????????????????????????????????????????????? | | ????????????????????????????????????????????????? | | ????????????????????????????????????????????????? | | ????????????????????????????????????????????????? | +----------------------------------------------------+ Best States ------------- Heat Dissipation 97 Energy Generation 54 Energy Capacity 1017 Matter Stores 300 Matter Capacity 300 Sight Range 22 Robot Scan Range 16 Terrain Scan Density 10 Armor Coverage 225 Resistance: TH 50 Point Defense Rating 240 Phase Shifting 5 Evasion (%) 63 Core Analysis 6 Recoil Reduction 6 Particle Charging 20 Kinecelleration 40 Offensive Hacking 10 Defensive Hacking 12 Item Schematics ----------------- None Robot Schematics ------------------ None Fabricated ------------ Nothing Repaired ---------- Nothing Studied --------- Titanium Leg | -8/Materials | Hacked Grenade Launcher | -8/Materials | Hacked Lgt. Deuterium Engine | -8/Materials | Hacked Alien Tech Used ----------------- None Achievements -------------- Irresistible Scrap Challenges ------------ None Game ------ Seed MomentumScanCapacitor Manual? 0 Play Time 03:03:09 Cumulative 166.4 hours Start 2026.02.17 @ 17:05:33 End 2026.02.17 @ 20:50:10 Sessions 1 Manual Loads 0 Difficulty Rogue Special Mode None Game No. 85 Rogue 85 Adventurer 0 Explorer 0 Win Type - Total 7 Types 6/0/1/0/0/0/0/0/0/0 Lore% 68 Gallery% 65 Achievement% 62 Wizard Run 0 Options --------- Layout 0 ASCII 0 Keyboard 1 Movement Arrows Keybinds 0 Fullscreen 1 Font 18/SmallcapsGlow Map View 76x50 Zoom Use 0% Tactical HUD 1 Map Filters NONE Filters NONE Steam 1 RUN: 0f4155cb-ee41-4198-bf29-e7428fc956d4